bitfinex/quotes_ETHUSD_20250703
["timestamp","ask_amount","ask_price","bid_price","bid_amount"]
[1751577197710,0.23047058,2598.6,2598.3,13.84866611]
[1751577198010,4.04029075,2598.6,2598.2,0.192]
[1751577198193,3.8485879,2598.4,2598.0,1.936]
[1751577198512,4.83273064,2598.5,2598.0,5.97710009]
[1751577199083,4.83273064,2598.5,2598.2,10.0]
[1751577199321,0.192,2598.5,2598.2,3.84872229]
[1751577199526,7.872,2598.6,2598.3,3.84856835]
[1751577199695,8.064,2598.6,2598.2,4.04073343]
[1751577200090,0.192,2598.6,2598.2,4.04073343]
[1751577200300,0.23047058,2598.6,2598.2,4.04073343]
[1751577201306,0.192,2598.6,2598.3,3.84861386]
[1751577201488,0.192,2598.6,2598.4,3.84844283]
[1751577202081,0.192,2598.6,2598.2,4.04075065]
[1751577202286,0.192,2598.6,2598.3,3.84859731]
[1751577203298,0.192,2598.6,2598.4,3.84852162]
[1751577205288,0.192,2598.6,2598.3,3.84858178]
[1751577206500,0.192,2598.6,2598.2,4.04073195]
[1751577206689,0.192,2598.6,2598.3,3.84865706]
[1751577207401,0.192,2598.6,2598.4,3.84850578]
[1751577208110,0.192,2598.6,2598.3,3.84857947]
[1751577208918,0.192,2598.6,2598.4,3.84849752]
[1751577209122,0.192,2598.6,2598.3,13.84859588]
[1751577209725,0.192,2598.6,2598.4,3.84843421]
[1751577209903,7.871,2598.7,2598.2,0.55]
[1751577210091,4.03993389,2598.8,2598.4,3.84846384]
[1751577210287,3.8480875,2598.7,2598.3,14.04058694]
[1751577211625,11.9110004,2598.8,2598.4,3.84851973]
[1751577213221,8.063,2598.8,2598.3,14.04066605]
[1751577213394,8.063,2598.8,2598.4,0.03848522]
[1751577213594,0.03847058,2598.7,2598.3,0.192]
[1751577213816,8.063,2598.8,2598.3,0.2304867]
[1751577214733,8.063,2598.8,2598.3,4.07909909]
[1751577215025,11.91101989,2598.8,2598.3,4.07909909]
[1751577215226,3.84810758,2598.7,2598.3,0.2304867]
[1751577215533,3.88657816,2598.7,2598.3,0.192]
[1751577215833,3.88657816,2598.7,2598.3,4.04064982]
[1751577216831,0.03847058,2598.7,2598.4,3.84851818]
[1751577217426,0.03847058,2598.7,2598.3,4.04060417]
[1751577218833,0.03847058,2598.7,2598.4,3.84850785]
[1751577219030,11.91103691,2598.8,2598.5,3.84834751]
[1751577219031,8.063,2598.8,2598.5,3.84834751]
[1751577220128,0.192,2598.8,2598.5,3.84834751]
[1751577222031,0.192,2598.8,2598.7,3.84807788]
[1751577222219,7.868,2598.9,2598.4,10.79198522]
[1751577222421,8.06,2598.9,2598.6,3.84816129]
[1751577222603,8.06,2598.9,2598.5,4.04029318]
[1751577223435,12.66560015,2598.9,2598.5,4.04029318]
[1751577223617,8.8178,2598.9,2598.6,3.84822254]
[1751577223800,8.8178,2598.9,2598.7,3.84807584]
[1751577224199,8.8178,2598.9,2598.7,3.84805896]
[1751577224603,8.8178,2598.9,2598.8,3.84792981]
[1751577224802,0.9498,2598.9,2598.8,3.84792981]
[1751577225002,0.192,2598.9,2598.8,3.84792981]
[1751577225239,0.48730708,2600.0,2599.0,3.8476337]
[1751577225398,0.48730708,2600.0,2599.2,3.8472345]
[1751577225399,0.7578,2599.4,2599.2,3.8472345]
[1751577225598,0.7578,2599.4,2599.3,3.84718962]
[1751577225799,8.059,2599.5,2599.4,3.84704162]
[1751577226123,8.059,2599.5,2599.3,3.8471023]
[1751577226298,0.192,2599.5,2599.2,3.8472885]
[1751577226502,0.192,2599.5,2599.2,3.84725349]
[1751577230451,4.68557199,2599.4,2599.1,1.933]
[1751577230641,0.192,2599.3,2599.1,1.933]
[1751577231353,0.192,2599.3,2599.0,13.84761162]
[1751577231531,0.192,2599.3,2599.0,10.0]
[1751577231719,0.192,2599.3,2599.0,13.84762375]
[1751577232554,0.192,2599.3,2599.1,3.84746412]
[1751577232967,0.192,2599.3,2599.0,13.84755601]
[1751577235936,0.192,2599.3,2599.1,3.84746577]
[1751577236337,0.192,2599.3,2599.0,3.84756964]
[1751577237370,0.192,2599.3,2599.0,5.78056964]
[1751577240165,0.83847058,2599.4,2599.0,1.933]
[1751577240166,0.8,2599.4,2599.0,1.933]
[1751577240371,0.8,2599.4,2599.0,2.125]
[1751577240568,4.64717665,2599.4,2599.0,0.192]
[1751577240776,0.03847058,2599.3,2598.8,11.933]
[1751577240981,0.8,2599.4,2599.1,3.84738121]
[1751577241151,0.8,2599.4,2599.2,3.84733695]
[1751577241339,0.8,2599.4,2599.1,3.84741221]
[1751577241840,0.7933,2599.6,2599.1,0.58847485]
[1751577242041,0.7933,2599.6,2599.4,3.84694174]
[1751577243739,0.7933,2599.6,2599.3,14.03909447]
[1751577244381,0.7933,2599.6,2599.4,3.84703415]
[1751577245089,8.6844,2599.8,2599.3,18.28689178]
[1751577245379,0.8234,2599.9,2599.3,0.7882]
[1751577245576,0.192,2599.7,2599.5,3.84683376]
[1751577245755,0.192,2599.7,2599.3,4.82735649]
[1751577245756,0.192,2599.7,2599.4,3.84696743]
[1751577246357,0.192,2599.7,2599.5,3.84687764]
[1751577246664,0.192,2599.7,2599.5,3.84688311]
[1751577247444,0.192,2599.7,2599.4,3.84699967]
[1751577250258,4.03861641,2599.7,2599.3,14.03911738]
[1751577250481,4.03861641,2599.7,2599.3,4.03911738]
[1751577250672,0.192,2599.7,2599.3,4.03911738]
[1751577251378,0.192,2599.7,2599.4,3.84703212]
[1751577251570,0.192,2599.7,2599.5,3.84687317]
[1751577251975,0.192,2599.7,2599.4,3.84696013]
[1751577252176,0.192,2599.7,2599.3,4.0391329]
[1751577252359,4.03860326,2599.7,2599.3,4.0391329]
[1751577252697,0.192,2599.7,2599.4,3.84703556]
[1751577255186,0.192,2599.7,2599.3,4.03911369]
[1751577255353,0.192,2599.7,2599.4,3.84704032]
[1751577255756,8.6844,2599.9,2599.5,3.84683302]
[1751577256083,12.72276101,2599.9,2599.5,3.84683302]
[1751577256686,8.8764,2599.9,2599.6,3.84671769]
[1751577256986,12.72270618,2599.9,2599.5,3.84681024]
[1751577257207,12.72270618,2599.9,2599.4,4.07739079]
[1751577257487,12.72270618,2599.9,2599.5,3.84688233]
[1751577257688,0.8234,2599.9,2599.5,3.84676016]
[1751577257888,0.8234,2599.9,2599.6,0.192]
[1751577258889,4.66970668,2599.9,2599.6,0.192]
[1751577259095,3.88498145,2599.8,2599.4,0.192]
[1751577259589,0.03847058,2599.8,2599.4,4.03900568]
[1751577259794,4.90025388,2599.9,2599.4,4.07747609]
[1751577260588,3.84645082,2599.8,2599.4,4.07747609]
[1751577262363,4.90022807,2599.9,2599.4,4.07747609]
[1751577263201,3.84647426,2599.8,2599.4,4.07747609]
[1751577263570,3.88494484,2599.8,2599.4,4.07747609]
[1751577263971,0.03847058,2599.8,2599.5,3.84688947]
[1751577264605,0.03847058,2599.8,2599.4,4.07741966]
[1751577265406,3.88492402,2599.8,2599.4,4.07741966]
[1751577265786,0.03847058,2599.8,2599.4,4.07741966]
[1751577266083,0.03847058,2599.8,2599.4,4.07742369]
[1751577266703,0.03847058,2599.8,2599.4,4.03903138]
[1751577266906,0.03847058,2599.8,2599.5,3.84687761]
[1751577267401,0.03847058,2599.8,2599.4,4.03895876]
[1751577267606,3.88493676,2599.8,2599.4,4.03895876]
[1751577269581,3.88493676,2599.8,2599.4,4.03902385]
[1751577270798,3.88493676,2599.8,2599.3,2.479]
[1751577270799,4.6573957,2599.7,2599.3,15.7761859]
[1751577270993,4.8493957,2599.7,2599.3,15.9681859]
[1751577271306,4.8493957,2599.7,2599.3,12.121]
[1751577271502,1.0027,2599.7,2599.3,15.96817934]
[1751577271823,0.192,2599.7,2599.5,3.84681072]
[1751577271982,0.192,2599.7,2599.4,3.84697969]
[1751577272906,0.192,2599.7,2599.5,3.84687784]
[1751577273410,0.192,2599.7,2599.4,3.84695462]
[1751577274009,0.192,2599.7,2599.5,3.84687682]
[1751577274679,1.0027,2599.9,2599.5,3.84687682]
[1751577274895,4.84903993,2599.9,2599.4,0.23047041]
[1751577275103,4.84903993,2599.9,2599.4,4.07744466]
[1751577275320,4.84903993,2599.9,2599.4,4.07739686]
[1751577275532,1.0027,2599.9,2599.5,3.84680558]
[1751577275812,4.84903893,2599.9,2599.5,3.84680558]
[1751577278017,3.84654868,2599.8,2599.4,4.07746672]
[1751577278380,1.04117058,2599.9,2599.5,8.28689178]
[1751577278581,0.04516612,2600.5,2599.6,4.0772131]
[1751577278582,4.80120647,2600.1,2599.6,4.0772131]
[1751577278780,5.72510984,2600.1,2599.6,4.0772131]
[1751577278981,5.76358042,2600.1,2599.6,4.0772131]
[1751577279287,5.72510984,2600.1,2599.7,3.84658654]
[1751577279808,1.87910337,2600.1,2599.7,3.84658654]
[1751577280115,4.80121848,2600.1,2599.7,3.84658654]
[1751577281726,3.8461587,2600.0,2599.6,4.07714059]
[1751577281924,3.88484407,2599.9,2599.6,0.192]
[1751577285212,0.8032,2599.8,2599.6,0.192]
[1751577287603,0.8032,2599.8,2599.5,0.192]
[1751577288500,0.03847058,2599.7,2599.5,0.192]
[1751577288701,0.8032,2599.8,2599.5,4.03883218]
[1751577289230,0.8032,2599.8,2599.5,0.192]
[1751577290435,0.8032,2599.8,2599.2,0.7805]
[1751577290436,3.88514853,2599.7,2599.2,15.77224441]
[1751577290612,3.88514853,2599.7,2599.3,0.192]
[1751577290819,3.88514853,2599.7,2599.3,10.192]
[1751577291336,3.84675414,2599.6,2599.3,0.192]
[1751577293810,3.8851548,2599.7,2599.3,0.192]
[1751577295745,3.84676116,2599.6,2599.3,0.192]
[1751577297148,3.84674565,2599.6,2599.3,0.192]
[1751577297321,0.7503,2599.7,2599.3,0.192]
[1751577297528,3.84697402,2599.5,2599.3,0.192]
[1751577297764,3.8854446,2599.5,2599.3,0.192]
[1751577298071,0.7503,2599.3,2599.0,1.925]
[1751577298244,0.9423,2599.3,2599.0,5.7726224]
[1751577298448,0.9423,2599.3,2599.1,10.0]
[1751577299216,0.9423,2599.3,2599.0,1.925]
[1751577300350,0.9423,2599.3,2599.1,10.0]
[1751577300742,0.9423,2599.3,2599.0,1.925]
[1751577301659,0.9423,2599.3,2599.1,10.0]
[1751577302222,0.9423,2599.3,2599.0,1.925]
[1751577302552,4.78951821,2599.3,2599.0,1.925]
[1751577303819,0.9423,2599.3,2599.0,1.925]
[1751577304018,4.78949771,2599.3,2599.0,1.925]
[1751577304629,0.9423,2599.3,2599.1,10.0]
[1751577304830,0.03847058,2599.4,2599.1,10.0]
[1751577304831,0.8265,2599.8,2599.2,9.10806515]
[1751577305044,0.8265,2600.0,2599.3,10.55]
[1751577305220,0.23047058,2599.9,2599.6,3.84672885]
[1751577307168,4.07680856,2599.9,2599.5,4.0388337]
[1751577307663,4.07684061,2599.9,2599.5,4.03889114]
[1751577308759,0.23047058,2599.9,2599.5,0.192]
[1751577308963,0.192,2599.7,2599.3,14.03918875]
[1751577309254,0.23047058,2599.7,2599.3,14.03918875]
[1751577310059,4.07712701,2599.7,2599.3,0.192]
[1751577310267,0.23047058,2599.7,2599.4,3.847013]
[1751577310765,0.23047058,2599.7,2599.3,4.03910585]
[1751577311464,0.23047058,2599.7,2599.4,3.84702476]
[1751577315168,0.23047058,2599.7,2599.3,4.03911264]
[1751577315368,4.07707483,2599.7,2599.3,4.03911264]
[1751577315580,3.84675483,2599.6,2599.3,0.192]
[1751577315770,0.7937,2599.5,2599.3,0.192]
[1751577315979,0.03847058,2599.4,2599.1,11.926]
[1751577316136,0.23047058,2599.4,2599.1,1.926]
[1751577316475,0.23047058,2599.4,2599.1,15.77348277]
[1751577317350,0.23047058,2599.4,2599.0,15.76955265]
[1751577317681,4.07753837,2599.4,2599.0,1.922]
[1751577318052,4.07753837,2599.4,2599.0,5.76963297]
[1751577318455,0.23047058,2599.4,2599.1,3.8474751]
[1751577319993,0.23047058,2599.4,2599.0,5.76954372]
[1751577320653,0.23047058,2599.4,2599.1,3.84747351]
[1751577320856,0.23047058,2599.4,2599.2,3.84730618]
[1751577321268,0.23047058,2599.4,2599.1,3.84741752]
[1751577321853,0.23047058,2599.4,2599.2,3.8473333]
[1751577322054,0.23047058,2599.4,2599.1,3.84740171]
[1751577322255,0.23047058,2599.4,2599.0,1.922]
[1751577322495,0.7937,2599.5,2599.2,3.84722003]
[1751577322655,1.02417058,2599.5,2599.2,3.84722003]
[1751577323671,0.9857,2599.5,2599.2,3.84722003]
[1751577326761,4.83260588,2599.5,2599.1,13.84742083]
[1751577327064,3.84786017,2598.9,2598.2,8.28689178]
[1751577327384,4.03971,2599.0,2598.6,10.0]
[1751577327567,0.03847058,2598.9,2598.6,10.0]
[1751577328288,3.88626101,2598.9,2598.6,10.0]
[1751577328660,4.60716721,2598.7,2598.3,1.922]
[1751577328856,0.23047058,2598.6,2598.3,5.77056324]
[1751577329106,0.23047058,2598.6,2598.4,10.0]
[1751577329259,0.23047058,2598.6,2598.4,10.0887]
[1751577330639,0.23047058,2598.6,2598.4,0.0887]
[1751577330764,0.23047058,2598.6,2598.4,10.0887]
[1751577331876,0.23047058,2598.6,2598.4,0.0887]
[1751577332373,0.23047058,2598.6,2598.4,10.0887]
[1751577333413,0.192,2598.6,2598.4,10.0887]
[1751577333698,0.192,2598.6,2598.4,13.9371558]
[1751577334361,0.192,2598.6,2598.5,3.84837406]
[1751577334756,0.7818,2599.1,2598.5,0.03848374]
[1751577335061,0.192,2599.1,2598.7,12.13487848]
[1751577335571,0.192,2599.1,2598.8,3.84792717]
[1751577336177,0.192,2599.1,2598.9,3.84775647]
[1751577336379,0.192,2599.1,2598.9,3.93645647]
[1751577336792,0.192,2599.1,2598.9,0.0887]
[1751577337891,0.192,2599.1,2598.9,3.9364506]
[1751577338083,0.192,2599.1,2598.9,0.0887]
[1751577342010,0.192,2599.1,2598.9,3.93647308]
[1751577342391,0.192,2599.1,2598.9,0.0887]
[1751577342807,3.8476337,2599.0,2598.9,0.0887]
[1751577343008,4.6446337,2599.0,2598.9,0.0887]
[1751577344014,0.797,2599.0,2598.9,0.0887]
[1751577345511,4.6446337,2599.0,2598.9,0.0887]
[1751577345914,0.797,2599.0,2598.9,0.0887]
[1751577347829,4.6446337,2599.0,2598.9,0.0887]
[1751577348164,5.17061471,2599.0,2598.9,0.0887]
[1751577348288,5.49216735,2599.0,2598.9,0.0887]
[1751577349502,5.53063793,2599.0,2598.9,0.0887]
[1751577351027,13.36763793,2599.0,2598.9,0.0887]
[1751577351229,13.32916735,2599.0,2598.9,0.0887]
[1751577352316,3.84837233,2598.6,2598.3,0.192]
[1751577352517,4.90164291,2598.6,2598.3,0.192]
[1751577352892,3.84843496,2598.5,2598.3,0.192]
[1751577355393,4.90155447,2598.6,2598.3,0.192]
[1751577356319,4.90155447,2598.6,2598.4,0.0887]
[1751577356926,4.90155447,2598.6,2598.3,0.192]
[1751577357925,4.90155447,2598.6,2598.3,0.202]
[1751577358525,0.192,2598.6,2598.3,10.202]
[1751577358705,0.192,2598.6,2598.5,8.28689178]
[1751577362939,8.027,2598.9,2598.6,3.84817766]
[1751577363312,8.027,2598.9,2598.5,8.28689178]
[1751577363313,11.87479057,2598.9,2598.5,12.13518069]
[1751577364626,3.84793189,2598.8,2598.5,8.28689178]
[1751577365345,3.84793189,2598.8,2598.4,4.04045589]
[1751577366662,3.84793189,2598.8,2598.4,0.192]
[1751577367667,11.87484377,2598.9,2598.4,14.0404175]
[1751577367830,4.03984377,2598.9,2598.5,3.84836577]
[1751577368156,3.84794086,2598.8,2598.4,14.04043838]
[1751577368734,0.03847058,2598.8,2598.4,0.192]
[1751577368925,0.192,2598.6,2598.3,0.01]
[1751577369148,0.23047058,2598.6,2598.3,0.01]
[1751577369349,0.192,2598.6,2598.3,0.01]
[1751577369546,0.192,2598.6,2598.3,3.8586078]
[1751577369751,0.192,2598.6,2598.3,0.01]
[1751577370464,0.192,2598.6,2598.3,3.85862223]
[1751577372134,0.192,2598.6,2598.3,0.01]
[1751577373376,0.192,2598.6,2598.2,22.92343899]
[1751577375682,0.192,2598.6,2598.3,3.84865221]
[1751577375851,0.192,2598.6,2598.4,3.84847759]
[1751577376052,0.192,2598.6,2598.3,3.84859388]
[1751577376354,0.192,2598.6,2598.3,10.0]
[1751577377959,0.192,2598.6,2598.3,13.84866626]
[1751577378164,0.192,2598.6,2598.2,14.04072919]
[1751577378565,4.0402773,2598.6,2598.2,10.192]
[1751577378766,4.91003733,2598.6,2598.2,10.192]
[1751577378968,4.94850791,2598.6,2598.2,10.192]
[1751577379401,3.84838214,2598.5,2598.2,10.192]
[1751577379604,3.8488428,2598.2,2597.8,1e-08]
[1751577379902,3.8488428,2598.2,2598.0,10.0]
[1751577379903,1.04265999,2598.2,2598.0,10.0]
[1751577380066,0.192,2598.2,2598.0,10.0]
[1751577381363,0.192,2598.2,2598.0,10.01]
[1751577382477,0.192,2598.2,2598.0,0.01]
[1751577382478,4.04087961,2598.2,2598.0,0.01]
[1751577382792,4.68843713,2598.1,2598.0,0.01]
[1751577383486,0.83947058,2598.1,2598.0,0.01]
[1751577383787,0.83947058,2598.1,2598.0,0.085]
[1751577383990,1.69317934,2598.1,2598.0,0.085]
[1751577385186,1.65470876,2598.1,2598.0,0.085]
[1751577385373,0.85370876,2598.1,2598.0,0.085]
[1751577385575,0.03847058,2598.2,2598.0,0.085]
[1751577386267,3.88729937,2598.2,2598.0,0.085]
[1751577388962,0.03847058,2598.2,2598.0,0.085]
[1751577389299,3.88730361,2598.2,2598.0,0.085]
[1751577390088,3.84896655,2598.1,2598.0,0.085]
[1751577390776,3.88743713,2598.1,2598.0,0.085]
[1751577390973,5.56866612,2598.1,2598.0,0.085]
[1751577391602,5.56866612,2598.1,2598.0,0.01]
[1751577391772,5.56866612,2598.1,2598.0,0.085]
[1751577392466,5.56866612,2598.1,2598.0,1e-08]
[1751577392467,13.39866612,2598.1,2598.0,1e-08]
[1751577392672,13.71990316,2598.1,2598.0,1e-08]
[1751577392867,13.71990316,2598.1,2597.8,1e-08]
[1751577392868,4.65886286,2597.9,2597.8,1e-08]
[1751577393068,7.21596201,2597.9,2597.8,1e-08]
[1751577394595,7.21562629,2597.9,2597.8,1e-08]
[1751577396704,15.04462629,2597.9,2597.8,1e-08]
[1751577396907,15.00615571,2597.9,2597.8,1e-08]
[1751577397598,14.64678381,2597.9,2597.8,1e-08]
[1751577397802,15.00580356,2597.9,2597.8,1e-08]
[1751577398592,25.00580356,2597.9,2597.8,1e-08]
[1751577399101,25.92459675,2597.9,2597.8,1e-08]
[1751577400411,29.92421129,2597.9,2597.8,1e-08]
[1751577401203,30.47421129,2597.9,2597.8,1e-08]
[1751577401614,29.92421129,2597.9,2597.8,1e-08]
[1751577401992,20.47421129,2597.9,2597.8,1e-08]
[1751577402180,30.47421129,2597.9,2597.8,1e-08]
[1751577404406,3.85015208,2597.3,2597.2,0.01]
[1751577404614,22.82774718,2597.3,2597.2,0.01]
[1751577404916,24.25636598,2597.3,2597.2,1e-08]
[1751577405590,24.25636598,2597.3,2596.9,0.01]
[1751577405591,3.85193174,2596.1,2596.0,0.7838]
[1751577405796,3.85219411,2596.0,2595.8,10.0]
[1751577406000,3.85219411,2596.0,2595.8,10.7647]
[1751577406196,3.89069909,2595.9,2595.7,1.918]
[1751577406401,0.192,2595.8,2595.5,0.7647]
[1751577406712,11.68214763,2596.0,2595.6,8.28689178]
[1751577406881,4.04426999,2595.9,2595.6,8.28689178]
[1751577407515,4.08278652,2595.9,2595.6,8.28689178]
[1751577408313,0.23047058,2595.9,2595.6,8.28689178]
[1751577408514,0.23047058,2595.9,2595.6,3.85261252]
[1751577408719,0.23047058,2595.9,2595.5,14.80950938]
[1751577409014,0.03847058,2595.9,2595.6,3.85258642]
[1751577409218,0.03847058,2595.9,2595.5,14.6174757]
[1751577409419,0.03847058,2595.9,2595.5,10.7647]
[1751577409585,3.89078963,2595.9,2595.5,10.7647]
[1751577410083,0.03847058,2595.9,2595.5,0.7647]
[1751577410308,3.85253771,2595.7,2595.5,0.7647]
[1751577410623,0.03847058,2595.7,2595.5,0.7647]
[1751577410856,3.89100643,2595.7,2595.5,0.7647]
[1751577411647,0.03847058,2595.7,2595.5,0.7647]
[1751577411840,3.89107937,2595.7,2595.5,0.7647]
[1751577412241,0.03847058,2595.7,2595.5,0.7647]
[1751577412452,0.03847058,2595.7,2595.2,0.9675379]
[1751577412757,3.85289497,2595.5,2595.2,0.9675379]
[1751577413250,3.89136555,2595.5,2595.2,0.9675379]
[1751577413549,3.85199787,2596.1,2595.3,12.13992144]
[1751577413738,3.85245063,2595.8,2595.5,0.7541]
[1751577413951,0.03847058,2595.7,2595.5,0.7541]
[1751577414726,11.26627055,2595.9,2595.5,0.7541]
[1751577415354,3.85239423,2595.8,2595.5,0.7541]
[1751577415725,3.85239423,2595.8,2595.5,0.7641]
[1751577415925,7.41397758,2595.9,2595.5,4.61689945]
[1751577415926,11.26626935,2595.9,2595.5,4.61689945]
[1751577416121,7.41397758,2595.9,2595.5,4.61689945]
[1751577416326,7.832,2595.9,2595.5,9.05099178]
[1751577416558,7.832,2595.9,2595.5,0.7641]
[1751577416559,3.85238768,2595.8,2595.5,0.7641]
[1751577417078,3.85237691,2595.8,2595.5,0.01]
[1751577417366,3.85259877,2595.7,2595.5,0.01]
[1751577417523,3.85267375,2595.6,2595.5,0.01]
[1751577417954,3.85260309,2595.7,2595.5,0.01]
[1751577418148,3.85267375,2595.6,2595.5,0.01]
[1751577418356,3.85258952,2595.7,2595.5,0.01]
[1751577418872,3.85267375,2595.6,2595.5,0.01]
[1751577419038,4.04467375,2595.6,2595.5,0.01]
[1751577420180,0.192,2595.6,2595.5,0.01]
[1751577424685,6.03592775,2595.6,2595.5,0.01]
[1751577424845,1.379654,2595.6,2595.5,0.01]
[1751577425050,4.04467375,2595.6,2595.5,0.01]
[1751577425983,0.192,2595.6,2595.5,0.01]
[1751577426665,0.192,2595.6,2595.5,3.86282219]
[1751577426865,3.85165772,2596.3,2595.8,0.8058]
[1751577427094,0.192,2596.1,2595.8,9.09269178]
[1751577427261,0.192,2596.1,2595.8,0.8058]
[1751577427458,0.192,2596.1,2595.9,3.85213891]
[1751577427793,0.192,2596.1,2595.8,4.65812678]
[1751577427995,0.192,2596.1,2595.9,3.85215141]
[1751577428183,0.35846164,2596.3,2595.8,9.09269178]
[1751577428391,8.024,2596.4,2596.0,3.85196068]
[1751577428569,8.024,2596.4,2596.1,3.85190746]
[1751577428770,8.024,2596.4,2596.0,3.85207305]
[1751577429078,0.192,2596.4,2596.2,4.62175837]
[1751577429402,0.55086121,2596.4,2596.2,4.62175837]
[1751577429633,0.192,2596.4,2596.2,4.62175837]
[1751577429897,0.192,2596.4,2596.2,0.77]
[1751577430269,0.35886121,2596.5,2596.2,0.77]
[1751577430270,0.192,2596.5,2596.3,3.85163501]
[1751577433193,0.192,2596.5,2596.2,4.62168293]
[1751577433398,0.192,2596.5,2596.2,0.77]
[1751577433802,0.192,2596.5,2596.3,3.8515822]
[1751577434005,0.35942302,2596.8,2596.7,4.61185859]
[1751577434204,0.212,2596.9,2596.7,4.61187442]
[1751577434714,0.02,2596.9,2596.8,3.8508934]
[1751577437217,0.02,2596.9,2596.8,14.43940233]
[1751577437523,0.02,2596.9,2596.8,14.5928934]
[1751577443534,0.02,2596.9,2596.8,10.0]
[1751577446340,0.02,2596.9,2596.8,13.8508934]
[1751577446528,0.02,2596.9,2596.8,10.0]
[1751577447529,0.02,2596.9,2596.6,14.04316996]
[1751577448412,0.02,2596.9,2596.7,3.85103829]
[1751577448614,0.02,2596.9,2596.6,14.04311156]
[1751577449032,0.02,2596.9,2596.7,3.85102289]
[1751577449333,0.02,2596.9,2596.6,14.04310856]
[1751577450402,0.02,2596.9,2596.7,3.85102931]
[1751577450817,0.02,2596.9,2596.8,0.0268]
[1751577451715,0.02,2596.9,2596.7,8.28689178]
[1751577452127,0.02,2596.9,2596.7,12.13792554]
[1751577452944,0.02,2596.9,2596.6,0.192]
[1751577454343,0.02,2596.9,2596.6,4.04318692]
[1751577454527,0.02,2596.9,2596.6,0.192]
[1751577454729,3.87074515,2596.9,2596.6,0.192]
[1751577455258,0.02,2596.9,2596.6,0.192]
[1751577457258,0.02,2596.9,2596.6,4.04318679]
[1751577457558,3.87082558,2596.9,2596.6,0.192]
[1751577458658,3.87082558,2596.9,2596.4,10.0]
[1751577458659,3.8508934,2596.8,2596.4,10.0]
[1751577458963,0.192,2596.7,2596.3,14.04354433]
[1751577459961,0.192,2596.7,2596.4,3.85139795]
[1751577460261,0.192,2596.7,2596.3,14.04363026]
[1751577461932,0.192,2596.7,2596.3,10.192]
[1751577462257,0.192,2596.7,2596.3,14.04362354]
[1751577463257,0.192,2596.7,2596.3,14.04356865]
[1751577463432,0.192,2596.7,2596.4,3.85137026]
[1751577469067,0.192,2596.7,2596.3,14.04355539]
[1751577470470,0.8219,2596.6,2596.3,10.192]
[1751577470878,0.8219,2596.6,2596.3,14.04361289]
[1751577471083,0.8219,2596.6,2596.3,10.0]
[1751577471285,1.0139,2596.6,2596.3,10.0]
[1751577471670,1.0139,2596.6,2596.3,13.85163391]
[1751577472397,1.0139,2596.6,2596.3,10.0]
[1751577473588,1.0139,2596.6,2596.3,13.85161838]
[1751577475797,0.192,2596.6,2596.4,3.85141737]
[1751577475995,0.192,2596.6,2596.4,3.85148667]
[1751577476494,0.192,2596.6,2596.5,3.85133834]
[1751577476995,0.36067805,2596.8,2596.6,3.85105895]
[1751577477297,0.9794,2596.9,2596.6,3.85105895]
[1751577478810,0.02,2596.7,2596.6,3.85105895]
[1751577479183,0.02,2596.7,2596.6,4.04305895]
[1751577481788,0.02,2596.7,2596.6,15.40897085]
[1751577482084,0.02,2596.7,2596.6,15.39225895]
[1751577482472,0.02,2596.9,2596.8,15.1782934]
[1751577482671,0.02,2596.9,2596.8,33.20318518]
[1751577482872,0.02,2596.9,2596.8,33.39518518]
[1751577484995,0.02,2596.9,2596.8,33.39418518]
[1751577489077,0.02,2596.9,2596.8,33.41058518]
[1751577489673,0.02,2597.0,2596.9,14.40074511]
[1751577490005,0.02,2597.0,2596.9,15.17194511]
[1751577490577,0.02,2597.0,2596.9,15.18834511]
[1751577491388,0.02,2597.0,2596.9,15.17194511]
[1751577494002,0.02,2597.0,2596.9,15.18834511]
[1751577494817,0.02,2597.0,2596.9,15.17194511]
[1751577495703,0.02,2597.0,2596.9,15.18834511]
[1751577496415,0.02,2597.0,2596.9,15.17194511]
[1751577500020,1e-08,2597.0,2596.9,15.22824511]
[1751577502708,1e-08,2597.0,2596.9,15.23824511]
[1751577506695,1e-08,2597.0,2596.9,45.23824511]
[1751577507803,1e-08,2597.0,2596.9,36.29235811]
[1751577508336,1e-08,2597.0,2596.9,28.25755811]
[1751577508498,1e-08,2597.0,2596.9,22.60011811]
[1751577511740,0.02,2597.8,2597.7,13.84955922]
[1751577511946,0.02,2597.8,2597.7,22.40955922]
[1751577512156,0.02,2597.8,2597.7,30.752751]
[1751577513434,0.02,2597.8,2597.7,22.934751]
[1751577513636,0.02,2597.8,2597.7,30.752751]
[1751577516053,0.02,2597.8,2597.7,22.46485922]
[1751577530184,0.02,2597.8,2597.7,23.26445922]
[1751577531690,0.02,2597.8,2597.7,23.20815922]
[1751577532361,0.02,2597.8,2597.7,23.26445922]
[1751577533292,0.02,2597.8,2597.7,23.20815922]
[1751577536492,0.02,2597.8,2597.7,23.26445922]
[1751577536898,0.02,2598.0,2597.9,4.39926286]
[1751577537076,0.02,2598.0,2597.9,30.53764726]
[1751577537272,0.02,2598.0,2597.9,30.69115464]
[1751577537689,1e-08,2598.0,2597.9,31.50765464]
[1751577538083,1e-08,2598.0,2597.9,30.69115464]
[1751577539202,1e-08,2598.0,2597.9,22.87815464]
[1751577539378,1e-08,2598.0,2597.9,32.60015464]
[1751577543892,1e-08,2598.0,2597.9,32.65055464]
[1751577547598,1e-08,2598.0,2597.9,37.42055464]
[1751577559590,1e-08,2598.0,2597.9,37.37015464]
[1751577562821,1e-08,2598.0,2597.9,37.46045464]
[1751577563620,1e-08,2598.0,2597.9,37.37015464]
[1751577567119,1e-08,2598.0,2597.9,37.45095464]
[1751577567824,1e-08,2598.0,2597.9,21.34806286]
[1751577568012,0.76770001,2598.0,2597.9,28.60606286]